bitfinex-derivatives/quotes_BNBF0:USTF0_20241231
["timestamp","ask_amount","ask_price","bid_price","bid_amount"]
[1735632672452,0.28509928,701.51,700.0,1.06309495]
[1735632673152,0.28509928,701.51,699.79,0.28580002]
[1735632673153,0.26241914,701.5,699.93,1.06309495]
[1735632673651,0.28509928,701.51,699.93,1.06309495]
[1735632673852,0.26241827,701.5,699.93,1.06309495]
[1735632675454,1.0633574,701.41,699.9,1.06309495]
[1735632676154,1.4901194,701.4,699.9,1.06309495]
[1735632676352,1.4901194,701.4,699.86,1.06309495]
[1735632677254,0.28515212,701.38,699.86,1.06309495]
[1735632677853,0.28515212,701.38,699.82,1.06309495]
[1735632679454,0.28515212,701.38,699.81,1.06309495]
[1735632680358,0.28515212,701.38,699.8,1.06309495]
[1735632681050,0.28515212,701.38,699.79,0.28580002]
[1735632681051,0.28515212,701.38,699.81,1.06309495]
[1735632681957,0.28515212,701.38,699.82,1.06309495]
[1735632684157,0.28515212,701.38,699.87,1.06309495]
[1735632685059,0.28515212,701.38,699.89,1.06309495]
[1735632686259,0.28515212,701.38,699.95,1.06309495]
[1735632687262,0.28515212,701.38,699.97,1.06309495]
[1735632688559,1.34850952,701.38,700.04,1.06309495]
[1735632689564,0.28515212,701.38,700.04,1.06309495]
[1735632689759,0.28515212,701.38,700.07,1.06309495]
[1735632690565,0.28515212,701.38,700.05,1.06309495]
[1735632693069,0.28515212,701.38,700.07,1.06309495]
[1735632694066,0.28515212,701.38,700.12,1.06309495]
[1735632694967,0.28515212,701.38,700.13,1.06309495]
[1735632695965,0.28515212,701.38,700.07,1.06309495]
[1735632697367,0.28515212,701.38,700.08,1.06309495]
[1735632698163,0.28515212,701.38,699.87,5.01246816]
[1735632698164,0.28515212,701.38,700.12,1.06309495]
[1735632699070,0.28515212,701.38,700.14,1.06309495]
[1735632699970,0.28515212,701.38,700.21,1.06309495]
[1735632701066,0.28515212,701.38,700.23,1.06309495]
[1735632702070,0.28515212,701.38,700.2,1.06309495]
[1735632703270,0.28515212,701.38,700.18,1.06309495]
[1735632704164,0.28515212,701.38,700.17,1.06309495]
[1735632705475,0.28515212,701.38,700.12,1.06309495]
[1735632708772,0.28515212,701.38,700.13,1.06309495]
[1735632710177,0.28515212,701.38,700.19,1.06309495]
[1735632711978,0.28515212,701.38,700.2,1.06309495]
[1735632714579,0.28515212,701.38,700.06,1.06309495]
[1735632716381,0.28515212,701.38,700.05,1.34878882]
[1735632717485,0.28035193,701.38,700.05,1.34878882]
[1735632718384,0.28035193,701.38,700.06,1.06309495]
[1735632720281,0.28035193,701.38,700.07,1.06309495]
[1735632721289,0.28035193,701.38,700.06,1.06309495]
[1735632722388,0.28035193,701.38,700.07,1.06309495]
[1735632723790,0.28035193,701.38,700.09,1.06309495]
[1735632724784,0.28035193,701.38,700.24,1.06309495]
[1735632725691,0.28035193,701.38,700.27,1.06309495]
[1735632726590,0.28035193,701.38,700.26,1.06309495]
[1735632727592,0.28035193,701.38,700.09,1.27571394]
[1735632727593,0.28035193,701.38,700.27,1.06309495]
[1735632728393,0.28035193,701.38,700.31,1.06309495]
[1735632729296,0.28035193,701.38,700.34,1.06309495]
[1735632730493,0.28035193,701.38,700.31,1.06309495]
[1735632731294,0.28035193,701.38,700.05,0.28569387]
[1735632740100,0.28035193,701.38,700.2,1.06309495]
[1735632741299,0.28035193,701.38,700.24,1.06309495]
[1735632743504,0.28035193,701.38,700.05,0.28569387]
[1735632743505,0.28035193,701.38,700.21,1.06309495]
[1735632744406,0.28035193,701.38,700.05,0.28569387]
[1735632744407,0.28035193,701.38,700.18,1.06309495]
[1735632745700,0.28035193,701.38,700.19,1.06309495]
[1735632746603,0.28035193,701.38,700.05,0.28569387]
[1735632746604,0.28035193,701.38,700.16,1.06309495]
[1735632747510,0.28035193,701.38,700.11,1.06309495]
[1735632748909,0.28035193,701.38,700.15,1.06309495]
[1735632749712,0.28035193,701.38,700.16,1.06309495]
[1735632750509,0.28035193,701.38,700.3,1.06309495]
[1735632751412,0.28035193,701.38,700.27,1.06309495]
[1735632752413,0.28035193,701.38,700.15,1.06309495]
[1735632753710,0.28035193,701.38,700.21,1.06309495]
[1735632754614,0.28035193,701.38,700.16,1.06309495]
[1735632755207,0.28035193,701.38,700.2,1.06309495]
[1735632756309,0.28035193,701.38,700.21,1.06309495]
[1735632758218,0.28035193,701.38,700.24,1.06309495]
[1735632759213,0.28035193,701.38,700.27,1.06309495]
[1735632761416,0.28035193,701.38,700.28,1.06309495]
[1735632762613,0.28035193,701.38,700.47,1.06309495]
[1735632763820,0.28035193,701.38,700.38,1.06309495]
[1735632765420,0.28035193,701.38,700.37,1.06309495]
[1735632766521,0.28035193,701.38,700.38,1.06309495]
[1735632767919,0.28035193,701.38,700.4,1.06309495]
[1735632768716,0.28035193,701.38,700.33,1.06309495]
[1735632769715,0.28035193,701.38,700.34,1.06309495]
[1735632771121,0.28035193,701.38,700.33,1.06309495]
[1735632772021,0.28035193,701.38,700.32,1.06309495]
[1735632772923,0.28035193,701.38,700.11,0.28566939]
[1735632772924,0.28035193,701.38,700.27,1.06309495]
[1735632773919,0.28035193,701.38,700.24,1.06309495]
[1735632774722,0.28035193,701.38,700.36,1.06309495]
[1735632776424,0.28035193,701.38,700.22,1.06309495]
[1735632777424,0.28035193,701.38,700.2,1.06309495]
[1735632779023,0.28035193,701.38,700.11,0.28566939]
[1735632779024,0.28035193,701.38,700.15,1.06309495]
[1735632779925,0.28035193,701.38,700.11,1.34876434]
[1735632780125,1.48967289,701.37,700.11,1.34876434]
[1735632782122,1.48967289,701.37,700.11,0.28566939]
[1735632792035,1.48967289,701.37,700.27,1.06309495]
[1735632793339,1.48967289,701.37,700.24,1.06309495]
[1735632794034,1.48967289,701.37,700.26,1.06309495]
[1735632795133,1.48967289,701.37,700.27,1.06309495]
[1735632796237,1.48967289,701.37,700.19,1.06309495]
[1735632797638,1.48967289,701.37,700.12,1.06309495]
[1735632798540,1.48967289,701.37,700.13,1.06309495]
[1735632799541,1.48967289,701.37,700.11,0.28566939]
[1735632799542,1.48967289,701.37,700.14,1.06309495]
[1735632801138,1.48967289,701.37,700.13,1.06309495]
[1735632802337,1.48967289,701.37,700.18,1.06309495]
[1735632804138,1.48967289,701.37,700.16,1.06309495]
[1735632805342,1.48967289,701.37,700.15,1.06309495]
[1735632805536,0.28035193,701.38,700.15,1.06309495]
[1735632806342,0.28035193,701.38,700.38,1.06309495]
[1735632807443,0.28035193,701.38,700.35,1.06309495]
[1735632808241,0.28035193,701.38,700.37,1.06309495]
[1735632809543,0.28035193,701.38,700.11,2.45615492]
[1735632809544,0.28035193,701.38,700.29,1.06309495]
[1735632810446,0.28035193,701.38,700.13,1.24708428]
[1735632810447,0.28035193,701.38,700.35,1.06309495]
[1735632812241,0.28035193,701.38,700.27,1.06309495]
[1735632813254,0.28035193,701.38,700.25,1.06309495]
[1735632814249,0.28035193,701.38,700.28,1.06309495]
[1735632815153,0.28035193,701.38,700.29,1.06309495]
[1735632817658,0.28035193,701.38,700.11,0.28566939]
[1735632817659,0.28035193,701.38,700.23,1.06309495]
[1735632819254,0.28035193,701.38,700.26,1.06309495]
[1735632820059,0.28035193,701.38,700.11,0.28566939]
[1735632820060,0.28035193,701.38,700.25,1.06309495]
[1735632822260,0.28035193,701.38,700.27,1.06309495]
[1735632823361,0.28035193,701.38,700.26,1.06309495]
[1735632824254,0.28035193,701.38,700.27,1.06309495]
[1735632825058,0.28035193,701.38,700.23,1.06309495]
[1735632826860,0.28035193,701.38,700.28,1.06309495]
[1735632829763,0.28035193,701.38,700.11,0.28566939]
[1735632829764,0.28035193,701.38,700.29,1.06309495]
[1735632833068,0.28035193,701.38,700.31,1.06309495]
[1735632833970,0.28035193,701.38,700.32,1.06309495]
[1735632834570,0.28035193,701.38,700.42,1.06309495]
[1735632835771,0.28035193,701.38,700.45,1.06309495]
[1735632836473,0.28035193,701.38,700.4,1.06309495]
[1735632839376,0.28035193,701.38,700.31,1.06309495]
[1735632840376,0.28035193,701.38,700.35,1.06309495]
[1735632841075,1.0633574,701.67,700.35,1.06309495]
[1735632841576,1.48909919,701.82,692.74,11.33025043]
[1735632841577,1.0633574,701.65,700.36,0.28556742]
[1735632842675,1.48909919,701.82,700.36,0.28556742]
[1735632851978,1.0633574,702.65,700.36,0.28556742]
[1735632852182,1.48891868,701.96,700.36,0.28556742]
[1735632852383,1.0633574,702.65,700.36,0.28556742]
[1735632852680,1.48882313,701.97,700.36,0.28556742]
[1735632852885,1.0633574,702.74,700.36,0.28556742]
[1735632853085,0.26209842,702.73,700.36,0.28556742]
[1735632853883,0.28464888,702.62,700.36,0.28556742]
[1735632854079,0.26209842,702.61,700.36,0.28556742]
[1735632854478,0.2846975,702.5,700.36,0.28556742]
[1735632855880,0.26210934,702.49,700.36,0.28556742]
[1735632856285,0.28470966,702.47,700.36,0.28556742]
[1735632856486,0.26210841,702.46,700.36,0.28556742]
[1735632856687,0.28472182,702.44,700.36,0.28556742]
[1735632857587,0.2621088,702.43,700.36,0.28556742]
[1735632858289,0.26211102,702.42,700.36,0.28556742]
[1735632858488,0.28473804,702.4,700.36,0.28556742]
[1735632858685,0.26211102,702.39,700.36,0.28556742]
[1735632858888,0.2847502,702.37,700.36,0.28556742]
[1735632859185,0.26211102,702.36,700.36,0.28556742]
[1735632859590,0.28476236,702.34,700.36,0.28556742]
[1735632859789,0.26211102,702.33,700.36,0.28556742]
[1735632859994,0.28477452,702.31,700.36,0.28556742]
[1735632864295,0.26210266,702.3,700.36,0.28556742]
[1735632864493,0.28478669,702.28,700.36,0.28556742]
[1735632864695,0.26210266,702.27,700.36,0.28556742]
[1735632864895,0.28479886,702.25,700.36,0.28556742]
[1735632865096,0.26210266,702.24,700.36,0.28556742]
[1735632865498,0.28481102,702.22,700.36,0.28556742]
[1735632865697,0.28481102,702.22,700.36,1.34866237]
[1735632866297,0.26210953,702.21,700.36,1.34866237]
[1735632866493,0.28481913,702.2,700.36,1.34866237]
[1735632866692,0.28481913,702.2,700.36,0.28556742]
[1735632867694,0.2621159,702.19,700.36,0.28556742]
[1735632867899,0.28482725,702.18,700.36,0.28556742]
[1735632869097,0.26211235,702.17,700.39,1.06309495]
[1735632869294,0.28482725,702.18,700.41,0.28554703]
[1735632869902,0.26211322,702.17,700.41,0.28554703]
[1735632870201,0.26211322,702.17,700.5,1.06309495]
[1735632870202,0.28483536,702.16,700.5,1.06309495]
[1735632870397,0.28483536,702.16,700.51,0.28550627]
[1735632871204,0.28483536,702.16,700.51,1.34860122]
[1735632872001,0.28483536,702.16,700.54,1.06309495]
[1735632872999,0.28483536,702.16,700.58,1.06309495]
[1735632874101,0.28483536,702.16,700.62,1.06309495]
[1735632874697,1.48835618,702.15,700.62,1.06309495]
[1735632874904,1.48835618,702.15,700.78,1.06309495]
[1735632875098,0.28484347,702.14,700.78,1.06309495]
[1735632875503,0.28484347,702.14,700.79,1.06309495]
[1735632876505,0.28484347,702.14,700.78,1.06309495]
[1735632877104,0.28484347,702.14,700.8,1.06309495]
[1735632877903,0.28484347,702.14,700.62,1.06309495]
[1735632878899,0.28484347,702.14,700.63,1.06309495]
[1735632879899,0.28484347,702.14,700.66,1.06309495]
[1735632882103,0.28484347,702.14,700.68,1.06309495]
[1735632883398,1.0633574,702.07,700.72,1.06309495]
[1735632883802,0.28487593,702.06,700.72,1.06309495]
[1735632884305,1.0633574,702.03,700.74,1.06309495]
[1735632884604,0.28489216,702.02,700.74,1.06309495]
[1735632885004,1.77336505,702.02,700.74,1.06309495]
[1735632885305,1.77336505,702.02,700.75,1.06309495]
[1735632885901,1.77336505,702.02,700.76,1.06309495]
[1735632888203,1.77336505,702.02,700.79,1.06309495]
[1735632889309,1.77336505,702.02,700.77,1.06309495]
[1735632891309,1.77336505,702.02,700.76,1.06309495]
[1735632892605,1.77336505,702.02,700.78,1.06309495]
[1735632893609,1.77336505,702.02,700.89,1.06309495]
[1735632894913,1.77336505,702.02,700.9,1.06309495]
[1735632895715,1.77336505,702.02,700.87,1.06309495]
[1735632898013,1.77336505,702.02,700.89,1.06309495]
[1735632898918,1.77336505,702.02,700.92,1.06309495]
[1735632899813,1.77336505,702.02,700.9,1.06309495]
[1735632900819,1.77336505,702.02,700.74,1.27571394]
[1735632900820,1.77336505,702.02,700.92,1.06309495]
[1735632902018,0.28489216,702.02,700.92,1.06309495]
[1735632902319,1.48845697,702.01,700.92,1.06309495]
[1735632902525,1.48845697,702.01,700.89,1.06309495]
[1735632904028,1.48845697,702.01,700.81,1.06309495]
[1735632905021,1.48845697,702.01,700.62,1.06309495]
[1735632905727,1.48845697,702.01,700.59,1.06309495]
[1735632906724,1.48845697,702.01,700.43,1.24451835]
[1735632906725,1.48845697,702.01,700.65,1.06309495]
[1735632908127,0.28490028,702.0,700.65,1.06309495]
[1735632910024,0.28490028,702.0,700.78,1.06309495]
[1735632911029,0.28490028,702.0,700.51,0.28550627]
[1735632911030,0.28490028,702.0,700.87,1.06309495]
[1735632911930,0.28490028,702.0,700.83,1.06309495]
[1735632914031,0.28490028,702.0,700.79,1.06309495]
[1735632915033,0.28490028,702.0,700.77,1.06309495]
[1735632915833,1.34825768,702.0,700.8,1.06309495]
[1735632917134,1.34825768,702.0,700.64,1.27571394]
[1735632917135,1.0633574,701.99,700.79,1.06309495]
[1735632918232,0.2849084,701.98,700.79,1.06309495]
[1735632918532,1.3482658,701.98,700.81,1.06309495]
[1735632919734,1.3482658,701.98,700.8,1.06309495]
[1735632920529,0.2849084,701.98,700.8,1.06309495]
[1735632923340,0.2849084,701.98,700.83,1.06309495]
[1735632924543,0.2849084,701.98,700.87,1.06309495]
[1735632925540,0.2849084,701.98,700.7,1.27571394]
[1735632925541,0.2849084,701.98,700.77,1.06309495]
[1735632926442,0.2849084,701.98,700.79,1.06309495]
[1735632927241,0.2849084,701.98,700.78,1.06309495]
[1735632929137,0.2849084,701.98,700.75,1.06309495]
[1735632930145,0.2849084,701.98,700.74,1.06309495]
[1735632932338,0.2849084,701.98,700.72,1.06309495]
[1735632933245,0.2849084,701.98,700.73,1.06309495]
[1735632934041,0.2849084,701.98,700.76,1.06309495]
[1735632935145,0.2849084,701.98,700.77,1.06309495]
[1735632936145,0.2849084,701.98,700.79,1.06309495]
[1735632936943,0.2849084,701.98,700.76,1.06309495]
[1735632937847,0.2849084,701.98,700.77,1.06309495]
[1735632939446,0.2849084,701.98,700.76,1.06309495]
[1735632940646,0.2849084,701.98,700.53,1.24375558]
[1735632940647,0.2849084,701.98,700.72,1.06309495]
[1735632941745,0.2849084,701.98,700.73,1.06309495]
[1735632942848,0.2849084,701.98,700.71,1.06309495]
[1735632944044,0.2849084,701.98,700.69,1.06309495]
[1735632944843,0.2849084,701.98,700.7,1.06309495]
[1735632947146,0.2849084,701.98,700.72,1.06309495]
[1735632948649,0.2849084,701.98,700.66,1.06309495]
[1735632949744,0.2849084,701.98,700.73,1.06309495]
[1735632950651,0.2849084,701.98,700.75,1.06309495]
[1735632952848,0.2849084,701.98,700.8,1.06309495]
[1735632955246,0.2849084,701.98,700.65,1.24238116]
[1735632955247,0.2849084,701.98,700.88,1.06309495]
[1735632956052,0.2849084,701.98,700.89,1.06309495]
[1735632957357,0.2849084,701.98,700.99,1.06309495]
[1735632958253,0.2849084,701.98,700.76,1.24281467]
[1735632958254,0.2849084,701.98,701.02,1.06309495]
[1735632959452,0.2849084,701.98,701.07,1.06309495]
[1735632961357,0.2849084,701.98,701.08,1.06309495]
[1735632962358,0.2849084,701.98,701.05,1.06309495]
[1735632963257,0.2849084,701.98,694.75,3.8323011]
[1735632963258,0.2849084,701.98,701.0,1.06309495]
[1735632964255,0.2849084,701.98,700.94,1.06309495]
[1735632965260,0.2849084,701.98,700.91,1.06309495]
[1735632965961,0.2849084,701.98,700.9,1.06309495]
[1735632966755,0.2849084,701.98,700.94,1.06309495]
[1735632967863,0.2849084,701.98,700.95,1.06309495]
[1735632969362,0.2849084,701.98,700.91,1.06309495]
[1735632971059,0.2849084,701.98,700.89,1.06309495]
[1735632972959,0.2849084,701.98,700.9,1.06309495]
[1735632974267,0.2849084,701.98,700.73,2.84108068]
[1735632974268,0.2849084,701.98,700.93,1.06309495]
[1735632975166,0.2849084,701.98,700.95,1.06309495]
[1735632976268,0.2849084,701.98,700.81,2.43413191]
[1735632976269,0.2849084,701.98,701.01,1.06309495]
[1735632977280,0.2849084,701.98,701.02,1.06309495]
[1735632978578,0.2849084,701.98,701.0,1.06309495]
[1735632979178,0.2849084,701.98,701.01,1.06309495]
[1735632980284,0.2849084,701.98,700.91,1.06309495]
[1735632981383,0.2849084,701.98,700.77,1.06309495]
[1735632982582,0.2849084,701.98,700.76,1.06309495]
[1735632983583,0.2849084,701.98,700.78,1.06309495]
[1735632985885,0.2849084,701.98,700.8,1.06309495]
[1735632987188,0.2849084,701.98,700.85,1.06309495]
[1735632987388,0.2849084,701.98,700.85,1.34846271]
[1735632989988,0.2849084,701.98,700.87,1.06309495]
[1735632991392,0.2849084,701.98,700.97,1.06309495]
[1735632992093,0.2849084,701.98,700.98,1.06309495]
[1735632994293,0.2849084,701.98,700.94,1.06309495]
[1735632996089,0.2849084,701.98,700.95,1.06309495]
[1735632996996,0.2849084,701.98,700.98,1.06309495]
[1735632997891,0.2849084,701.98,700.97,1.06309495]
[1735632998792,0.2849084,701.98,700.85,0.28536776]
[1735632998793,0.2849084,701.98,700.94,1.06309495]
[1735633000195,0.2849084,701.98,700.95,1.06309495]
[1735633001093,0.2849084,701.98,700.94,1.06309495]
[1735633002093,0.2849084,701.98,700.85,0.28536776]
[1735633002094,0.2849084,701.98,700.93,1.06309495]
[1735633004400,0.2849084,701.98,700.98,1.06309495]
[1735633005400,0.2849084,701.98,700.95,1.06309495]
[1735633007401,0.2849084,701.98,700.93,1.06309495]
[1735633008202,0.2849084,701.98,700.95,1.06309495]
[1735633009006,0.2849084,701.98,700.98,1.06309495]
[1735633010205,0.2849084,701.98,701.0,1.06309495]
[1735633011105,0.2849084,701.98,701.09,1.06309495]
[1735633012098,0.2849084,701.98,701.1,1.06309495]
[1735633013405,0.2849084,701.98,701.14,1.06309495]
[1735633014103,0.2849084,701.98,701.2,1.06309495]
[1735633015407,0.2849084,701.98,701.23,1.06309495]
[1735633016308,0.2849084,701.98,701.25,1.06309495]
[1735633017210,0.2849084,701.98,701.26,1.06309495]
[1735633018304,0.2849084,701.98,701.23,1.06309495]
[1735633019007,0.2849084,701.98,701.24,1.06309495]
[1735633020509,0.2849084,701.98,701.02,2.43990639]
[1735633020510,0.2849084,701.98,701.26,1.06309495]
[1735633021705,0.2849084,701.98,701.15,1.06309495]
[1735633022106,1.48747613,702.49,701.15,1.06309495]
[1735633022909,1.48747613,702.49,701.39,1.06309495]
[1735633024009,1.48747613,702.49,701.33,1.06309495]
[1735633025107,1.48747613,702.49,701.3,1.06309495]
[1735633026109,1.48747613,702.49,701.01,1.06309495]
[1735633026506,1.48747613,702.49,701.02,0.28529856]
[1735633032916,1.0633574,702.98,701.02,0.28529856]
[1735633033216,1.48747613,702.63,701.02,0.28529856]
[1735633033418,1.0633574,702.98,701.02,0.28529856]
[1735633033621,1.48739666,702.64,701.22,1.06309495]
[1735633034010,1.0633574,702.96,701.22,1.06309495]
[1735633035110,1.48697296,702.95,701.22,1.06309495]
[1735633035309,1.48697296,702.95,701.15,1.06309495]
[1735633035917,1.48697296,702.95,701.14,1.06309495]
[1735633036919,1.48697296,702.95,701.16,1.06309495]
[1735633037915,1.48697296,702.95,701.27,1.06309495]
[1735633039312,1.48697296,702.95,701.36,1.06309495]
[1735633040219,1.48697296,702.95,701.25,1.06309495]
[1735633041418,1.48697296,702.95,701.07,1.31580378]
[1735633041620,1.48697296,702.95,701.02,1.51637991]
[1735633041920,1.48697296,702.95,701.02,3.93649481]
[1735633042119,1.48697296,702.95,701.03,1.23108135]
[1735633042321,1.48697296,702.95,701.2,1.06309495]
[1735633043121,1.48697296,702.95,701.03,2.4201149]
[1735633043122,1.48697296,702.95,701.04,1.23108135]
[1735633043319,1.48697296,702.95,701.03,3.65119625]
[1735633043519,0.2845193,702.94,701.03,3.65119625]
[1735633044019,0.2845193,702.94,701.04,1.30879942]
[1735633044418,0.2845193,702.94,701.04,4.95999567]
[1735633044620,0.2845193,702.94,701.05,3.65119625]
[1735633044816,0.2845193,702.94,701.05,4.7142912]
[1735633045019,0.2845193,702.94,701.06,1.23108135]
[1735633045722,0.2845193,702.94,701.06,2.2941763]
[1735633046018,0.2845193,702.94,701.06,3.60220222]
[1735633046225,0.2845193,702.94,701.06,4.7142912]
[1735633046527,0.2845193,702.94,701.06,1.06309495]
[1735633046718,0.2845193,702.94,701.2,1.06309495]
[1735633047726,0.2845193,702.94,701.15,1.06309495]
[1735633048324,0.2845193,702.94,701.19,1.06309495]
[1735633049331,0.2845193,702.94,701.09,1.06309495]
[1735633050231,0.2845193,702.94,701.07,2.2941763]
[1735633050424,0.2845193,702.94,701.07,1.06309495]
[1735633051226,0.2845193,702.94,701.07,1.3065151]
[1735633051423,0.2845193,702.94,701.05,1.06309495]
[1735633052332,0.2845193,702.94,701.08,1.06309495]
[1735633053425,0.2845193,702.94,701.12,1.06309495]
[1735633054227,0.2845193,702.94,701.15,1.06309495]
[1735633055328,0.2845193,702.94,701.18,1.06309495]
[1735633056328,0.2845193,702.94,701.17,1.06309495]
[1735633057428,0.2845193,702.94,701.2,1.06309495]
[1735633058231,0.2845193,702.94,701.25,1.06309495]
[1735633059332,0.2845193,702.94,701.26,1.06309495]
[1735633060136,0.2845193,702.94,701.07,2.4201149]
[1735633060137,0.2845193,702.94,701.25,1.06309495]
[1735633061138,0.2845193,702.94,701.06,1.23108135]
[1735633061139,0.2845193,702.94,701.24,1.06309495]
[1735633062234,0.2845193,702.94,701.25,1.06309495]
[1735633063136,0.2845193,702.94,701.33,1.06309495]
[1735633065440,0.2845193,702.94,701.32,1.06309495]
[1735633066638,0.2845193,702.94,701.37,1.06309495]
[1735633067639,0.2845193,702.94,701.38,1.06309495]
[1735633068540,0.2845193,702.94,701.45,1.06309495]
[1735633069439,0.2845193,702.94,701.47,1.06309495]
[1735633070440,0.2845193,702.94,701.5,1.06309495]
[1735633071845,0.2845193,702.94,701.51,1.06309495]
[1735633072838,0.2845193,702.94,701.42,1.06309495]
[1735633072839,1.0633574,702.91,701.42,1.06309495]
[1735633073745,0.28453549,702.9,701.42,1.06309495]
[1735633074944,1.0633574,702.89,701.41,1.06309495]
[1735633075144,0.28454764,702.87,701.41,1.06309495]
[1735633075740,1.48689884,702.86,701.41,1.06309495]
[1735633075939,1.48689884,702.86,701.45,1.06309495]
[1735633076342,0.28455573,702.85,701.45,1.06309495]
[1735633076739,0.28455573,702.85,701.46,1.06309495]
[1735633077538,0.28455573,702.85,701.44,1.06309495]
[1735633078648,0.28455573,702.85,701.33,0.28517245]
[1735633078649,0.28455573,702.85,701.42,1.06309495]
[1735633079546,0.28455573,702.85,701.39,1.06309495]
[1735633080744,0.28455573,702.85,701.36,1.06309495]
[1735633081646,0.28455573,702.85,701.33,0.28517245]
[1735633087949,0.28455573,702.85,701.38,1.06309495]
[1735633089146,0.28455573,702.85,701.39,1.06309495]
[1735633089950,0.28455573,702.85,701.5,1.06309495]
[1735633091049,0.28455573,702.85,701.55,1.06309495]
[1735633092049,0.28455573,702.85,701.52,1.06309495]
[1735633093348,0.28455573,702.85,701.51,1.06309495]
[1735633094253,0.28455573,702.85,701.53,1.06309495]
[1735633095254,0.28455573,702.85,701.55,1.06309495]
[1735633096356,0.28455573,702.85,701.58,1.06309495]
[1735633097658,0.28455573,702.85,701.6,1.06309495]
[1735633099059,0.28455573,702.85,701.56,1.06309495]
[1735633100152,0.28455573,702.85,701.39,2.55348927]
[1735633100153,0.28455573,702.85,701.78,1.06309495]
[1735633101262,0.28455573,702.85,701.8,1.06309495]
[1735633102460,0.28455573,702.85,701.58,3.7484004]
[1735633102461,0.28455573,702.85,701.7,1.06309495]
[1735633103361,0.28455573,702.85,701.59,1.06309495]
[1735633106260,0.28455573,702.85,701.55,1.06309495]
[1735633107360,0.28455573,702.85,701.53,1.06309495]
[1735633108464,0.28455573,702.85,701.52,1.06309495]
[1735633108866,0.28455573,702.85,701.54,1.06309495]
[1735633109266,0.28455573,702.85,701.55,0.28508303]
[1735633117867,0.28455573,702.85,701.55,1.34817798]
[1735633118972,0.28455573,702.85,701.55,0.28508303]
[1735633120172,0.28455573,702.85,701.65,1.06309495]
[1735633120971,0.28455573,702.85,701.66,1.34813328]
[1735633121175,0.28455573,702.85,701.67,0.28503427]
[1735633131485,0.28455573,702.85,701.82,1.06309495]
[1735633132379,0.28455573,702.85,701.9,1.06309495]
[1735633133186,0.28455573,702.85,701.67,0.28503427]
[1735633133187,0.28455573,702.85,701.94,1.06309495]
[1735633134393,0.28455573,702.85,701.95,1.06309495]
[1735633135496,0.28455573,702.85,701.69,2.17048553]
[1735633135497,0.28455573,702.85,701.96,1.06309495]
[1735633136597,0.28455573,702.85,701.95,1.06309495]
[1735633137699,0.28455573,702.85,701.98,1.06309495]
[1735633138595,0.28455573,702.85,701.71,2.42168914]
[1735633138596,0.28455573,702.85,702.05,1.06309495]
[1735633139602,0.28455573,702.85,702.02,1.06309495]
[1735633140601,0.28455573,702.85,702.03,1.06309495]
[1735633141599,0.28455573,702.85,702.06,1.06309495]
[1735633142597,0.28455573,702.85,702.05,1.06309495]
[1735633143402,0.28455573,702.85,702.08,1.06309495]
[1735633149900,1.48611042,703.1,702.08,1.06309495]
[1735633150104,1.48611042,703.1,702.09,1.06309495]
[1735633152109,1.27602888,703.76,701.94,1.23550248]
[1735633152110,1.0633574,703.36,702.1,1.06309495]
[1735633152307,1.4857826,703.26,702.1,1.06309495]
[1735633152502,0.28435345,703.35,702.1,1.06309495]
[1735633152705,1.48568217,703.27,702.1,1.06309495]
[1735633152902,1.48568217,703.27,701.95,1.27571394]
[1735633152903,1.48568217,703.27,702.12,1.06309495]
[1735633153705,1.48568217,703.27,702.1,1.06309495]
[1735633154803,1.48568217,703.27,702.08,1.06309495]
[1735633155907,1.48568217,703.27,701.91,1.27571394]
[1735633155908,1.48568217,703.27,702.05,1.06309495]
[1735633156710,1.48568217,703.27,702.07,1.06309495]
[1735633157705,1.48568217,703.27,702.02,1.06309495]
[1735633159609,1.48568217,703.27,702.0,1.06309495]
[1735633160606,1.48568217,703.27,701.85,2.55210984]
[1735633160607,1.48568217,703.27,701.99,1.06309495]
[1735633161911,1.48568217,703.27,702.01,1.06309495]
[1735633163112,1.48568217,703.27,702.04,1.06309495]
[1735633163812,1.48568217,703.27,701.87,1.06309495]
[1735633164713,0.28438984,703.26,701.87,1.06309495]
[1735633165112,0.28438984,703.26,701.89,1.06309495]
[1735633166314,0.28438984,703.26,701.88,1.06309495]
[1735633167413,0.28438984,703.26,701.86,1.34805206]
[1735633168216,0.28438984,703.26,701.86,0.28495711]
[1735633169113,0.28438984,703.26,701.88,1.06309495]
[1735633170614,1.34774724,703.26,701.91,1.06309495]
[1735633171613,1.34774724,703.26,701.86,0.28495711]
[1735633171614,1.0633574,703.23,701.86,1.34805206]
[1735633171812,0.26174815,703.22,701.86,1.34805206]
[1735633172410,0.26176652,703.21,701.86,1.34805206]
[1735633172612,1.0633574,703.23,701.86,1.34805206]
[1735633172814,1.0633574,703.19,701.87,1.06309495]
[1735633173116,0.26177493,703.18,701.87,1.06309495]
[1735633173616,1.74808105,703.18,701.87,1.06309495]
[1735633173813,1.0633574,703.15,701.73,1.06309495]
[1735633175213,1.48630612,703.18,701.49,1.06309495]
[1735633175415,0.26181234,703.17,701.49,1.06309495]
[1735633176017,0.26182034,703.16,701.39,1.06309495]
[1735633176314,0.26182034,703.15,701.4,0.28514399]
[1735633176615,0.26182034,703.14,701.4,0.28514399]
[1735633176816,0.26182034,703.13,701.4,0.28514399]